bitfinex-derivatives/quotes_BTCF0:USTF0_20251207
["timestamp","ask_amount","ask_price","bid_price","bid_amount"]
[1765101747453,0.10659225,89234.0,89233.0,0.73744]
[1765101747943,0.10659225,89234.0,89233.0,0.002]
[1765101748147,0.10659225,89234.0,89233.0,0.52172]
[1765101750256,0.10659225,89234.0,89233.0,0.56021]
[1765101751052,0.10659225,89234.0,89233.0,0.52172]
[1765101752556,0.10659225,89234.0,89233.0,0.56021]
[1765101752957,0.10659225,89234.0,89233.0,0.59744]
[1765101754159,0.10659225,89234.0,89233.0,0.07772]
[1765101754450,0.10659225,89234.0,89233.0,0.42772]
[1765101759765,0.10659225,89234.0,89233.0,0.07772]
[1765101763763,0.10659225,89234.0,89233.0,0.44772]
[1765101766759,0.10659225,89234.0,89233.0,0.14772]
[1765101767868,0.10659225,89234.0,89233.0,0.39772]
[1765101769766,0.10659225,89234.0,89233.0,0.08772]
[1765101769970,0.10659225,89234.0,89233.0,0.07772]
[1765101771670,0.10659225,89234.0,89233.0,0.0889257]
[1765101779988,0.10659225,89234.0,89233.0,0.07772]
[1765101782087,0.10659225,89234.0,89233.0,0.002]
[1765101782290,0.10659225,89234.0,89229.0,0.88052]
[1765101782291,0.074756,89230.0,89229.0,0.35562008]
[1765101782492,0.074756,89230.0,89225.0,0.00016817]
[1765101782493,0.0941465,89226.0,89225.0,0.00016817]
[1765101782690,0.51947875,89226.0,89225.0,0.00016817]
[1765101783696,0.52047875,89226.0,89225.0,0.01516817]
[1765101784088,0.60071403,89226.0,89225.0,0.01516817]
[1765101784589,0.52047875,89226.0,89225.0,0.01516817]
[1765101785607,0.06355,89190.0,89189.0,0.01098754]
[1765101785893,0.06355,89190.0,89179.0,0.06708]
[1765101785894,0.08294,89180.0,89179.0,0.06708]
[1765101786285,0.08294,89180.0,89179.0,0.03358]
[1765101786286,0.44374,89180.0,89179.0,0.03358]
[1765101786495,0.46915034,89180.0,89179.0,0.03358]
[1765101786694,0.06355,89178.0,89171.0,0.00016817]
[1765101786898,0.51896034,89178.0,89171.0,0.00016817]
[1765101787299,0.49355,89178.0,89171.0,0.00016817]
[1765101788296,0.49355,89178.0,89177.0,0.04892497]
[1765101788897,0.49455,89178.0,89177.0,0.05892497]
[1765101789999,0.49455,89178.0,89177.0,0.09250497]
[1765101790399,0.06455,89178.0,89177.0,0.12600497]
[1765101794303,0.78615,89178.0,89177.0,0.12600497]
[1765101801511,0.78615,89178.0,89177.0,0.48600497]
[1765101801813,0.78615,89178.0,89177.0,0.14600497]
[1765101805817,0.78615,89178.0,89177.0,0.36600497]
[1765101806016,0.7750516,89178.0,89177.0,0.36600497]
[1765101806216,0.7750516,89178.0,89177.0,0.32108]
[1765101808108,0.7435216,89178.0,89177.0,0.32108]
[1765101808719,0.7963816,89178.0,89177.0,0.32108]
[1765101810521,0.7435216,89178.0,89177.0,0.32108]
[1765101811026,1.1663816,89178.0,89177.0,0.014]
[1765101811225,0.9163816,89178.0,89177.0,0.014]
[1765101811728,1.1863816,89178.0,89177.0,0.014]
[1765101812128,1.21174355,89178.0,89177.0,0.014]
[1765101814730,0.93174355,89178.0,89177.0,0.014]
[1765101817237,0.82174355,89178.0,89177.0,0.014]
[1765101817425,0.82174355,89178.0,89177.0,0.04621]
[1765101818251,0.82174355,89178.0,89177.0,0.10161]
[1765101818548,0.82174355,89178.0,89177.0,0.1128227]
[1765101819436,0.82174355,89178.0,89177.0,0.5028227]
[1765101820749,0.74796195,89178.0,89177.0,0.5028227]
[1765101820952,0.42129195,89178.0,89177.0,0.5028227]
[1765101821142,0.47415195,89178.0,89177.0,0.5028227]
[1765101821646,0.42129195,89178.0,89177.0,0.5028227]
[1765101822348,0.38716195,89178.0,89177.0,0.5028227]
[1765101824456,0.43909195,89178.0,89177.0,0.5028227]
[1765101825951,0.38716195,89178.0,89177.0,0.5028227]
[1765101826254,0.3618,89178.0,89177.0,0.5028227]
[1765101828357,0.41373,89178.0,89177.0,0.5028227]
[1765101828858,0.3618,89178.0,89177.0,0.5028227]
[1765101830255,0.41373,89178.0,89177.0,0.5028227]
[1765101830553,0.46255,89178.0,89177.0,0.5028227]
[1765101842157,0.41373,89178.0,89177.0,0.5028227]
[1765101842766,0.46087,89178.0,89177.0,1.0230227]
[1765101846768,0.46087,89178.0,89177.0,0.5028227]
[1765101846968,0.46087,89178.0,89177.0,1.0229827]
[1765101848166,0.10007,89178.0,89177.0,1.0229827]
[1765101856482,0.10007,89178.0,89177.0,1.0229027]
[1765101864299,0.10007,89178.0,89177.0,0.5028227]
[1765101864489,0.10007,89178.0,89177.0,1.0228627]
[1765101868702,0.05293,89178.0,89177.0,1.0228627]
[1765101870102,0.05293,89178.0,89177.0,1.0228227]
[1765101870604,0.001,89178.0,89177.0,1.0228227]
[1765101871106,0.04767,89178.0,89177.0,1.0228227]
[1765101872497,0.001,89178.0,89177.0,1.0228227]
[1765101878911,0.09264,89178.0,89177.0,1.0228227]
[1765101887509,0.04767,89178.0,89177.0,1.0228227]
[1765101891206,0.08889,89178.0,89177.0,1.0228227]
[1765101893902,0.08889,89178.0,89177.0,0.5028227]
[1765101894208,0.08889,89178.0,89177.0,1.0228227]
[1765101895901,0.04767,89178.0,89177.0,1.0228227]
[1765101896105,0.001,89178.0,89177.0,1.0228227]
[1765101901511,0.08011,89178.0,89177.0,1.0228227]
[1765101903616,0.06901161,89178.0,89177.0,1.0228227]
[1765101904616,0.43991,89182.0,89181.0,0.1081622]
[1765101904817,0.43991,89182.0,89181.0,0.4981622]
[1765101905711,0.43991,89182.0,89181.0,1.0181622]
[1765101905916,0.44091,89182.0,89181.0,1.0181622]
[1765101906510,0.44491,89182.0,89181.0,1.0181622]
[1765101907013,0.3658,89182.0,89181.0,1.0181622]
[1765101907711,0.3618,89182.0,89181.0,1.0221622]
[1765101908120,0.3608,89182.0,89181.0,1.0261622]
[1765101909624,0.3608,89182.0,89181.0,1.0221622]
[1765101909931,0.3608,89182.0,89181.0,1.0261622]
[1765101910820,0.39926,89182.0,89181.0,1.0261622]
[1765101913222,0.3608,89182.0,89181.0,1.0261622]
[1765101913421,0.39892,89182.0,89181.0,1.0261622]
[1765101914122,0.43588,89182.0,89181.0,1.0261622]
[1765101914624,0.4613534,89182.0,89181.0,1.0261622]
[1765101917425,0.1005534,89182.0,89181.0,1.0261622]
[1765101924732,0.07508,89182.0,89181.0,1.0261622]
[1765101924932,0.07508,89182.0,89181.0,1.0251622]
[1765101925429,0.03812,89182.0,89181.0,1.0251622]
[1765101925620,0.43588,89186.0,89185.0,0.0874617]
[1765101925822,0.46134598,89186.0,89185.0,0.4474617]
[1765101926828,0.46134598,89186.0,89185.0,0.4534617]
[1765101934124,0.10054598,89186.0,89185.0,0.4534617]
[1765101934328,0.46134598,89186.0,89185.0,0.4534617]
[1765101938145,0.46134598,89186.0,89185.0,0.1334617]
[1765101940347,0.46134598,89186.0,89185.0,0.5034617]
[1765101942845,0.46134598,89186.0,89185.0,0.35835529]
[1765101942846,0.47255758,89186.0,89185.0,0.35835529]
[1765101943151,0.0112133,89172.0,89171.0,0.00016817]
[1765101943346,0.39747928,89172.0,89171.0,0.03628817]
[1765101944342,0.39747928,89172.0,89171.0,0.04028817]
[1765101945850,0.39747928,89172.0,89171.0,0.07320817]
[1765101946150,0.39747928,89172.0,89171.0,0.07620817]
[1765101947749,0.3608,89172.0,89171.0,0.48620817]
[1765101952457,0.3608,89186.0,89185.0,0.06904]
[1765101952757,0.38603867,89186.0,89185.0,0.06904]
[1765101953455,0.39803867,89186.0,89185.0,0.07004]
[1765101954341,0.43141867,89186.0,89185.0,0.07004]
[1765101956351,0.43141867,89186.0,89185.0,0.0812517]
[1765101956546,0.40618,89186.0,89185.0,0.0812517]
[1765101957455,0.40618,89186.0,89185.0,0.07004]
[1765101962356,0.43143816,89186.0,89185.0,0.07004]
[1765101968561,0.43033816,89186.0,89185.0,0.07004]
[1765101971265,0.43033816,89186.0,89185.0,0.001]
[1765101971654,0.43033816,89186.0,89185.0,0.04031]
[1765101971967,0.43033816,89186.0,89185.0,0.07659]
[1765101976061,0.79113816,89186.0,89185.0,0.07659]
[1765101977367,0.0260733,89172.0,89166.0,0.02432]
[1765101977571,0.77293146,89172.0,89163.0,0.02432]
[1765101978073,1.16293146,89172.0,89163.0,0.02432]
[1765101978570,1.16293146,89172.0,89171.0,0.08043877]
[1765101978767,1.16293146,89172.0,89160.0,0.03931]
[1765101978768,0.0260747,89161.0,89160.0,0.03931]
[1765101979068,0.0260747,89161.0,89158.0,0.00012651]
[1765101979069,0.01486,89159.0,89158.0,0.00012651]
[1765101979257,0.50091816,89159.0,89158.0,0.00012651]
[1765101979572,0.50091816,89159.0,89158.0,0.03943651]
[1765101980868,0.50191816,89159.0,89158.0,0.04643651]
[1765101981172,0.76191816,89159.0,89158.0,0.08271651]
[1765101981968,0.76191816,89159.0,89158.0,0.08671651]
[1765101983068,0.76191816,89159.0,89158.0,0.51671651]
[1765101983069,0.3618,89159.0,89158.0,0.51671651]
[1765101983269,0.3618,89159.0,89158.0,0.10671651]
[1765101983663,0.36923,89159.0,89158.0,0.46671651]
[1765101984969,0.37666,89159.0,89158.0,0.08671651]
[1765101989676,0.37666,89159.0,89158.0,0.05043651]
[1765101990079,0.37666,89159.0,89158.0,0.08671651]
[1765101997885,0.01586,89159.0,89158.0,0.08671651]
[1765101998180,0.37666,89159.0,89158.0,0.08671651]
[1765102000987,0.36923,89159.0,89158.0,0.08671651]
[1765102001179,0.3618,89159.0,89158.0,0.08671651]
[1765102001585,0.38836,89159.0,89158.0,0.08671651]
[1765102003488,0.3611,89159.0,89158.0,0.08671651]
[1765102004289,0.3611,89159.0,89158.0,0.44671651]
[1765102009295,0.38766,89159.0,89158.0,0.08671651]
[1765102009500,0.41296156,89159.0,89158.0,0.08671651]
[1765102012206,0.41296156,89159.0,89158.0,0.05043651]
[1765102015021,0.41296156,89159.0,89158.0,0.01112651]
[1765102015227,0.84296156,89159.0,89158.0,0.01112651]
[1765102019425,0.81296156,89159.0,89158.0,0.01112651]
[1765102020522,1.17376156,89159.0,89158.0,0.01112651]
[1765102022617,1.17376156,89159.0,89158.0,0.00712651]
[1765102022827,1.17376156,89159.0,89158.0,0.00812651]
[1765102024232,1.17346156,89159.0,89158.0,0.00212651]
[1765102026734,1.69406156,89159.0,89158.0,0.00212651]
[1765102027530,1.17346156,89159.0,89158.0,0.08100651]
[1765102028334,0.77346156,89159.0,89158.0,0.08100651]
[1765102034937,0.76018156,89159.0,89158.0,0.45100651]
[1765102035233,0.39938156,89159.0,89158.0,0.45100651]
[1765102036140,0.40072156,89159.0,89158.0,0.45100651]
[1765102041841,0.40072156,89159.0,89158.0,0.08100651]
[1765102046541,0.40076278,89159.0,89158.0,0.08100651]
[1765102048250,0.00016817,89167.0,89166.0,0.1118941]
[1765102048551,0.0127226,89178.0,89177.0,0.0884727]
[1765102048740,0.36382,89178.0,89177.0,0.0884727]
[1765102049346,0.36382,89178.0,89177.0,0.07726]
[1765102050240,0.37082,89178.0,89177.0,0.07826]
[1765102051152,0.38582,89178.0,89177.0,0.07926]
[1765102051648,0.36382,89178.0,89177.0,0.07726]
[1765102051847,0.36382,89178.0,89177.0,0.08226]
[1765102052448,0.36382,89178.0,89177.0,0.08026]
[1765102052648,0.36382,89178.0,89177.0,0.08326]
[1765102053552,0.36382,89178.0,89177.0,0.08426]
[1765102060251,0.38870448,89178.0,89177.0,0.08426]
[1765102061471,0.36382,89178.0,89177.0,0.08426]
[1765102062258,0.3886995,89178.0,89177.0,0.08426]
[1765102064755,0.36382,89178.0,89177.0,0.08426]
[1765102065862,0.00302,89178.0,89177.0,0.08426]
[1765102066066,0.36382,89178.0,89177.0,0.08426]
[1765102069067,0.3608,89178.0,89177.0,0.08426]
[1765102070168,0.00016784,89186.0,89185.0,0.07212]
[1765102070370,0.04016784,89186.0,89185.0,0.07212]
[1765102070571,0.06505482,89186.0,89185.0,0.07212]
[1765102070766,0.02505482,89186.0,89185.0,0.08327886]
[1765102070972,0.00016784,89186.0,89185.0,0.09449056]
[1765102072374,0.00016784,89186.0,89185.0,0.09549056]
[1765102072671,0.00016784,89186.0,89185.0,0.09649056]
[1765102073278,0.00016784,89186.0,89185.0,0.09549056]
[1765102073464,0.00016784,89186.0,89185.0,0.09749056]
[1765102073663,0.00016784,89186.0,89185.0,0.09649056]
[1765102073865,0.00016784,89186.0,89185.0,0.09949056]
[1765102076477,0.00016784,89186.0,89185.0,0.48949056]
[1765102077389,0.7216,89192.0,89191.0,0.0833309]
[1765102077792,0.74653722,89192.0,89191.0,0.0833309]
[1765102078791,0.74653722,89192.0,89191.0,0.0843309]
[1765102078982,0.74653722,89192.0,89191.0,0.0853309]
[1765102079184,0.7216,89192.0,89191.0,0.0853309]
[1765102079789,0.7216,89192.0,89191.0,0.0873309]
[1765102079989,0.7216,89192.0,89191.0,0.0863309]
[1765102080191,0.7216,89192.0,89191.0,0.0893309]
[1765102085985,0.0112095,89203.0,89202.0,0.08559]
[1765102086186,0.3960213,89203.0,89202.0,0.08559]
[1765102087795,0.3980213,89203.0,89202.0,0.08559]
[1765102088786,0.4020213,89203.0,89202.0,0.08559]
[1765102089892,0.3980213,89203.0,89202.0,0.08559]
[1765102090093,0.3980213,89203.0,89202.0,0.08659]
[1765102090596,0.3960213,89203.0,89202.0,0.08659]
[1765102090798,0.3960213,89203.0,89202.0,0.08859]
[1765102090990,0.3960213,89203.0,89202.0,0.003]
[1765102092099,0.0112099,89199.0,89198.0,0.0112101]
[1765102092288,0.4012099,89199.0,89198.0,0.0112101]
[1765102092488,0.4260217,89199.0,89198.0,0.0768201]
[1765102094598,0.4260217,89199.0,89198.0,0.0808201]
[1765102095203,0.7868217,89199.0,89198.0,0.0808201]
[1765102098103,0.7868217,89199.0,89198.0,0.06961]
[1765102100402,0.7868217,89199.0,89198.0,0.06761]
[1765102100601,0.7868217,89199.0,89198.0,0.06961]
[1765102100803,0.7868217,89199.0,89198.0,0.06761]
[1765102101009,0.7868217,89199.0,89198.0,0.06861]
[1765102105205,0.7868217,89199.0,89198.0,0.0798201]
[1765102105406,0.7868217,89199.0,89198.0,0.06861]
[1765102112415,0.7868217,89199.0,89198.0,0.003]
[1765102113414,0.7868217,89199.0,89198.0,0.001]
[1765102113607,0.7928217,89199.0,89198.0,0.002]
[1765102113803,0.0112104,89195.0,89194.0,0.00016817]
[1765102114002,0.4112104,89195.0,89194.0,0.00016817]
[1765102114202,0.4360222,89195.0,89194.0,0.00016817]
[1765102115112,0.4460222,89195.0,89194.0,0.00116817]
[1765102115714,0.9671422,89195.0,89194.0,0.00116817]
[1765102116118,0.9721422,89195.0,89194.0,0.00216817]
[1765102117119,0.9671422,89195.0,89194.0,0.00116817]
[1765102117412,0.9731422,89195.0,89194.0,0.00216817]
[1765102118013,0.4530222,89195.0,89194.0,0.06845817]
[1765102121516,0.9731422,89195.0,89194.0,0.06845817]
[1765102122121,0.4530222,89195.0,89194.0,0.06845817]
[1765102123610,0.0530222,89195.0,89194.0,0.06845817]
[1765102136339,0.4138222,89195.0,89194.0,0.06845817]
[1765102137443,0.0530222,89195.0,89194.0,0.06845817]
[1765102137743,0.4138222,89195.0,89194.0,0.06845817]
[1765102138146,0.0530222,89195.0,89194.0,0.06845817]
[1765102138344,0.4138222,89195.0,89194.0,0.06845817]
[1765102144246,0.4026118,89195.0,89194.0,0.06845817]
[1765102151550,0.0418118,89195.0,89194.0,0.06845817]
[1765102152452,0.0530222,89195.0,89194.0,0.06845817]
[1765102156760,0.4138222,89195.0,89194.0,0.06845817]
[1765102160369,0.0530222,89195.0,89194.0,0.06845817]
[1765102160756,0.4138222,89195.0,89194.0,0.06845817]
[1765102161162,0.0530222,89195.0,89194.0,0.06845817]
[1765102161363,0.4138222,89195.0,89194.0,0.06845817]
[1765102170479,0.4079222,89195.0,89194.0,0.06845817]
[1765102173177,0.4079222,89195.0,89194.0,0.08600817]
[1765102186294,0.3967118,89195.0,89194.0,0.08600817]
[1765102186791,0.3967118,89195.0,89194.0,0.52647194]
[1765102186990,0.3967118,89195.0,89194.0,0.46600817]
[1765102187184,0.3778,89195.0,89194.0,0.46600817]
[1765102191699,0.3778,89195.0,89194.0,0.98604817]
[1765102198995,0.017,89195.0,89194.0,0.98604817]
[1765102204810,0.017,89195.0,89194.0,1.04646367]
[1765102205811,0.017,89195.0,89194.0,0.98604817]
[1765102209414,0.01668418,89195.0,89194.0,0.98604817]
[1765102210316,0.3608,89199.0,89198.0,0.0671501]
[1765102210514,0.3608,89210.0,89209.0,0.05594]
[1765102210713,0.38531999,89210.0,89209.0,0.9459]
[1765102211415,0.38531999,89210.0,89209.0,0.9571087]
[1765102212215,0.36179059,89210.0,89209.0,0.9571087]
[1765102212417,0.3372706,89210.0,89209.0,0.9571087]
[1765102213212,0.3608,89219.0,89218.0,0.0662676]
[1765102213417,0.3608,89219.0,89218.0,0.9362276]
[1765102214014,0.0112063,89228.0,89227.0,0.05556]
[1765102214221,0.03570894,89228.0,89227.0,0.48556]
[1765102214818,0.03570894,89228.0,89227.0,0.07556]
[1765102215313,0.03870894,89228.0,89227.0,0.07556]
[1765102215917,0.04270894,89228.0,89227.0,0.07556]
[1765102216518,0.04270894,89228.0,89227.0,0.31556]
[1765102216814,0.03150264,89228.0,89227.0,0.3267664]
[1765102217225,0.03150264,89228.0,89227.0,0.08556]
[1765102217925,0.03150264,89228.0,89227.0,0.0967664]
[1765102218324,0.03150264,89228.0,89227.0,0.3667664]
[1765102219923,0.03150264,89228.0,89227.0,0.35556]
[1765102220425,0.007,89228.0,89227.0,0.35556]
[1765102228524,0.3608,89237.0,89235.0,0.01722]
[1765102228840,0.28840635,89237.0,89236.0,0.0667653]
[1765102229030,0.28840635,89237.0,89236.0,0.4967653]
[1765102229228,0.0683218,89264.0,89263.0,0.05556]
[1765102229427,0.05712,89264.0,89263.0,0.05556]
[1765102229829,0.05712,89264.0,89263.0,0.45556]
[1765102230043,0.05712,89273.0,89272.0,0.05556]
[1765102230234,0.05307798,89273.0,89272.0,0.47556]
[1765102230536,0.02865,89273.0,89272.0,0.47556]
[1765102230738,0.05712,89273.0,89272.0,0.47556]
[1765102231233,0.3719994,89284.0,89277.0,0.0112001]
[1765102231434,0.4291194,89284.0,89283.0,0.05556]
[1765102231628,0.45350194,89284.0,89283.0,0.05556]
[1765102231832,0.38518254,89284.0,89283.0,0.43556]
[1765102232141,0.0288455,89315.0,89309.0,0.05556]
[1765102232142,0.05712,89310.0,89309.0,0.05556]
[1765102232739,0.3608,89317.0,89316.0,0.05556]
[1765102232740,0.05712,89317.0,89316.0,0.05556]
[1765102232928,0.081457,89317.0,89316.0,0.44556]
[1765102233124,0.05712,89317.0,89316.0,0.05556]
[1765102233330,0.05712,89317.0,89316.0,0.46556]
[1765102234041,0.05712,89317.0,89316.0,0.18556]
[1765102235043,0.06212,89317.0,89316.0,0.18556]
[1765102235239,0.06912,89317.0,89316.0,0.18656]
[1765102235542,0.06912,89317.0,89316.0,0.43378]
[1765102235933,0.06212,89317.0,89316.0,0.43278]
[1765102236132,0.06212,89317.0,89316.0,0.18556]
[1765102236133,0.06712,89317.0,89316.0,0.18556]
[1765102237635,0.06712,89317.0,89316.0,0.05556]
[1765102238032,0.06712,89317.0,89316.0,0.02773]
[1765102238235,0.05712,89316.0,89315.0,0.38853]
[1765102238735,0.05712,89316.0,89315.0,0.41636]
[1765102239541,0.06212,89316.0,89315.0,0.41636]
[1765102240545,0.06212,89316.0,89315.0,0.05556]
[1765102240846,0.06712,89316.0,89315.0,0.05556]
[1765102245442,0.06712,89316.0,89315.0,0.48278]
[1765102247246,0.06712,89316.0,89315.0,0.07278]
[1765102247742,0.011196,89311.0,89310.0,0.07341]
[1765102247945,0.0827155,89315.0,89314.0,0.07341]
[1765102248544,0.07152,89315.0,89314.0,0.07341]
[1765102249142,0.07152,89315.0,89314.0,0.46341]
[1765102250436,0.005,89315.0,89314.0,0.46341]
[1765102250643,0.03245,89315.0,89314.0,0.46341]
[1765102250840,0.005,89315.0,89314.0,0.46341]
[1765102251542,0.009,89315.0,89314.0,0.46341]
[1765102252646,0.07852,89315.0,89314.0,0.46341]
[1765102253048,0.07852,89315.0,89314.0,0.14341]
[1765102253445,0.0897154,89315.0,89314.0,0.07341]
[1765102253651,0.1014154,89315.0,89314.0,0.02813]
[1765102253843,0.1054154,89315.0,89314.0,0.02813]
[1765102254151,0.1054154,89315.0,89314.0,0.07341]
[1765102254337,0.0887154,89315.0,89314.0,0.07341]
[1765102257042,0.07752,89315.0,89314.0,0.07341]
[1765102258352,0.10187311,89315.0,89314.0,0.07341]
[1765102260658,0.07752,89315.0,89314.0,0.07341]
[1765102260851,0.07752,89315.0,89312.0,0.40459]
[1765102260852,0.08897,89313.0,89312.0,0.40459]
[1765102261048,0.08897,89313.0,89304.0,0.0968466]
[1765102261049,0.08897,89305.0,89304.0,0.0968466]
[1765102261248,0.08897,89305.0,89304.0,0.6163266]
[1765102261249,0.11338762,89305.0,89304.0,0.6163266]
[1765102261651,0.02441762,89305.0,89304.0,0.9863266]
[1765102261852,0.08897,89309.0,89308.0,0.0968463]
[1765102262159,0.11342625,89309.0,89308.0,0.0968463]
[1765102262355,0.02445625,89309.0,89308.0,0.3768463]
[1765102263055,0.02445625,89309.0,89308.0,0.3848463]
[1765102263751,0.02445625,89309.0,89308.0,0.7456463]
[1765102263957,0.02445625,89309.0,89308.0,0.7486463]
[1765102264160,0.0111938,89328.0,89321.0,0.08565]
[1765102264161,0.06039167,89322.0,89321.0,0.08565]
[1765102264356,0.06039167,89323.0,89322.0,0.0968445]
[1765102264757,0.08897,89323.0,89322.0,0.0968445]
[1765102264956,0.08897,89323.0,89322.0,0.08565]
[1765102265459,0.1001645,89322.0,89321.0,0.3608]
[1765102265661,0.08897,89314.0,89313.0,0.0968456]
[1765102265854,0.08897,89314.0,89313.0,0.6163656]
[1765102266952,0.08897,89314.0,89313.0,0.60517]
[1765102267152,0.09197,89314.0,89313.0,0.60521]
[1765102267754,0.09397,89314.0,89313.0,0.60521]
[1765102272665,0.09397,89314.0,89313.0,0.08565]
[1765102272871,0.09397,89314.0,89313.0,0.04379]
[1765102273477,0.09397,89314.0,89313.0,0.08689]
[1765102276269,0.11860483,89314.0,89313.0,0.08689]
[1765102276770,0.08875,89312.0,89311.0,0.40642]
[1765102276965,0.08875,89306.0,89305.0,0.6194365]
[1765102277170,0.11338483,89306.0,89305.0,0.6194365]
[1765102278378,0.11338483,89306.0,89305.0,0.6284365]
[1765102279376,0.11338483,89306.0,89305.0,0.6560065]
[1765102279776,0.11338483,89306.0,89305.0,0.6590065]
[1765102281482,0.11338483,89306.0,89305.0,0.6314365]
[1765102281876,0.11338483,89306.0,89305.0,0.62024]
[1765102283177,0.11338483,89306.0,89305.0,0.52852]
[1765102283374,0.11338483,89306.0,89305.0,0.53052]
[1765102283775,0.11338483,89306.0,89305.0,0.57614]
[1765102284586,0.11338483,89306.0,89305.0,0.05662]
[1765102284776,0.51338483,89306.0,89305.0,0.05662]
[1765102285078,0.51338483,89306.0,89305.0,0.011]
[1765102285878,0.51638483,89306.0,89305.0,0.008]
[1765102286479,0.08875,89302.0,89301.0,0.04578798]
[1765102286681,0.11338483,89302.0,89301.0,0.08888798]
[1765102288087,0.12458183,89302.0,89301.0,0.09688798]
[1765102288284,0.12458183,89302.0,89301.0,0.09988798]
[1765102288584,0.54458183,89302.0,89301.0,0.05678798]
[1765102288782,0.54458183,89302.0,89301.0,0.01116798]
[1765102288983,0.54458183,89302.0,89301.0,0.00816798]
[1765102289484,0.13458183,89302.0,89301.0,0.08888798]
[1765102289685,0.13458183,89302.0,89301.0,0.09288798]
[1765102290086,0.13858183,89302.0,89301.0,0.08888798]
[1765102290290,0.13058183,89302.0,89301.0,0.08888798]
[1765102290686,0.12858183,89302.0,89301.0,0.08888798]
[1765102290886,0.12958183,89302.0,89301.0,0.08888798]
[1765102291489,0.12858183,89302.0,89301.0,0.08888798]
[1765102292291,0.12558183,89302.0,89301.0,0.08888798]
[1765102292493,0.12458183,89302.0,89301.0,0.09988798]
[1765102294288,0.12458183,89302.0,89301.0,0.11108508]
[1765102294493,0.12458183,89302.0,89301.0,0.09988798]
[1765102298398,0.12464916,89302.0,89301.0,0.09988798]
[1765102299493,0.53464916,89302.0,89301.0,0.01116798]
[1765102300592,0.53464916,89302.0,89301.0,0.04978798]
[1765102301297,0.53574916,89302.0,89301.0,0.04978798]
[1765102301498,0.53874916,89302.0,89301.0,0.04978798]
[1765102301995,0.53874916,89302.0,89301.0,0.00416798]
[1765102302191,0.53874916,89302.0,89301.0,0.00316798]
[1765102302798,0.53974916,89302.0,89301.0,0.00016798]
[1765102309707,0.53974916,89302.0,89292.0,0.3608]
[1765102309708,0.0944381,89293.0,89292.0,0.3608]
[1765102309893,0.11914026,89293.0,89292.0,0.3608]
[1765102310098,0.11914026,89293.0,89292.0,0.4031]
[1765102310503,0.54914026,89293.0,89292.0,0.3608]
[1765102310904,0.0944391,89285.0,89284.0,0.08191798]
[1765102311203,0.49916242,89285.0,89284.0,0.08191798]
[1765102312008,0.49916242,89285.0,89284.0,0.04246798]
[1765102312210,0.49916242,89285.0,89284.0,0.00016798]
[1765102312505,0.49916242,89285.0,89284.0,0.01716798]
[1765102312903,0.49916242,89285.0,89284.0,0.00516798]
[1765102313103,0.49916242,89285.0,89284.0,0.01316798]
[1765102313295,0.49916242,89285.0,89284.0,0.00816798]
[1765102314300,0.50216242,89285.0,89284.0,0.00816798]
[1765102314496,0.50216242,89285.0,89284.0,0.00016798]
[1765102314714,0.50316242,89285.0,89284.0,0.00016798]
[1765102316709,0.12316242,89285.0,89284.0,0.08135798]
[1765102316911,0.29316242,89285.0,89284.0,0.08135798]
[1765102319415,0.2684391,89285.0,89284.0,0.08135798]
[1765102320410,0.0984391,89285.0,89284.0,0.08135798]
[1765102321803,0.12313779,89285.0,89284.0,0.08135798]
[1765102322108,0.0984391,89285.0,89284.0,0.08135798]
[1765102324913,0.12313668,89285.0,89284.0,0.08135798]
[1765102337529,0.12313668,89285.0,89284.0,0.09255728]
[1765102338820,0.12213668,89285.0,89284.0,0.10155728]
[1765102339125,0.11093758,89285.0,89284.0,0.10155728]
[1765102339328,0.10793758,89285.0,89284.0,0.09255728]
[1765102339521,0.10793758,89285.0,89284.0,0.10455728]
[1765102340128,0.10793758,89285.0,89284.0,0.10155728]
[1765102340330,0.10793758,89285.0,89284.0,0.10455728]
[1765102341020,0.02469758,89285.0,89284.0,0.48455728]
[1765102341714,0.02469758,89285.0,89284.0,0.54496128]
[1765102343327,0.02469758,89285.0,89284.0,0.48455728]
[1765102344628,0.0811081,89294.0,89293.0,0.0823781]
[1765102344930,0.10570839,89294.0,89293.0,0.0823781]
[1765102345835,0.10870839,89294.0,89293.0,0.0823781]
[1765102346029,0.11070839,89294.0,89293.0,0.0823781]
[1765102346532,0.11070839,89294.0,89293.0,0.07118]
[1765102346834,0.10770839,89294.0,89293.0,0.07118]
[1765102347135,0.10770839,89294.0,89293.0,0.07418]
[1765102347440,0.10570839,89294.0,89293.0,0.07418]
[1765102347628,0.10570839,89294.0,89293.0,0.08418]
[1765102348138,0.10570839,89294.0,89293.0,0.07418]
[1765102348338,0.10570839,89294.0,89293.0,0.08118]
[1765102348635,0.10570839,89294.0,89293.0,0.08418]
[1765102348834,0.10570839,89294.0,89293.0,0.08318]
[1765102349928,0.10570839,89294.0,89293.0,0.08018]
[1765102350129,0.10570839,89294.0,89293.0,0.08318]
[1765102355132,0.10570839,89294.0,89293.0,0.0943781]
[1765102355639,0.02460029,89294.0,89293.0,0.8651781]
[1765102361040,0.06043029,89294.0,89293.0,0.8651781]
[1765102367245,0.06043029,89294.0,89293.0,0.5043781]
[1765102367448,0.06043029,89294.0,89293.0,0.8651781]
[1765102371346,0.02460029,89294.0,89293.0,0.8651781]
[1765102374352,0.02460029,89294.0,89293.0,0.5043781]
[1765102374554,0.02460029,89294.0,89293.0,0.8651781]
[1765102378049,0.00016732,89301.0,89293.0,0.8651781]
[1765102378349,0.06805,89316.0,89315.0,0.06761]
[1765102380048,0.07305,89316.0,89315.0,0.06761]
[1765102380248,0.07805,89316.0,89315.0,0.06761]
[1765102380756,0.06805,89316.0,89315.0,0.06761]
[1765102381057,0.07505,89316.0,89315.0,0.06761]
[1765102381457,0.09,89316.0,89315.0,0.06761]
[1765102381855,0.07505,89316.0,89315.0,0.06761]
[1765102385661,0.09041,89316.0,89315.0,0.06761]
[1765102389960,0.07505,89316.0,89315.0,0.06761]
[1765102393571,0.07505,89316.0,89315.0,0.0788054]
[1765102395768,0.07505,89316.0,89315.0,0.06761]
[1765102396358,0.09647,89316.0,89315.0,0.06761]
[1765102396973,0.07505,89316.0,89315.0,0.0788054]
[1765102397875,0.09647,89316.0,89315.0,0.06761]
[1765102399071,0.07505,89316.0,89315.0,0.06761]
[1765102399578,0.07505,89316.0,89315.0,0.0788054]
[1765102401466,0.07505,89316.0,89315.0,0.08987066]